bitfinex/quotes_ETHUSD_20250422
["timestamp","ask_amount","ask_price","bid_price","bid_amount"]
[1745345688577,11.77824303,1698.1,1697.7,0.8302]
[1745345688778,5.88938162,1698.0,1697.7,6.73228517]
[1745345688978,1.1778243,1698.0,1697.7,6.73228517]
[1745345689151,5.88879447,1698.2,1697.9,5.90208517]
[1745345689480,5.88907304,1698.1,1697.8,5.90208517]
[1745345691276,5.88970518,1697.9,1697.6,3.0]
[1745345691488,5.88970518,1697.9,1697.4,7.13152717]
[1745345691642,5.88970518,1697.9,1697.5,3.0]
[1745345691970,7.14263356,1697.9,1697.4,13.02287864]
[1745345692500,5.8901499,1697.8,1697.5,3.0]
[1745345692768,5.89060704,1697.7,1697.4,1.229442]
[1745345693100,5.89060704,1697.7,1697.4,0.399242]
[1745345693304,5.89079168,1697.6,1697.4,0.399242]
[1745345694084,5.89060704,1697.7,1697.4,0.399242]
[1745345694291,7.0499941,1697.7,1697.4,0.399242]
[1745345694587,12.94061152,1697.7,1697.4,0.399242]
[1745345695168,7.04997509,1697.7,1697.4,0.399242]
[1745345695573,0.7501,1697.6,1697.4,0.399242]
[1745345695772,6.6409293,1697.6,1697.4,0.399242]
[1745345695973,6.55510913,1697.5,1697.4,0.399242]
[1745345697908,0.66409293,1697.5,1697.4,0.399242]
[1745345698107,6.6409293,1697.6,1697.4,0.399242]
[1745345698277,5.8910162,1697.5,1697.4,0.399242]
[1745345700890,6.6954162,1697.5,1697.4,0.399242]
[1745345701291,11.6487742,1697.5,1697.4,0.399242]
[1745345703331,4.953358,1697.5,1697.4,0.399242]
[1745345703537,10.8443742,1697.5,1697.4,0.399242]
[1745345703678,12.51789455,1697.5,1697.4,0.399242]
[1745345705437,4.953358,1697.5,1697.4,0.399242]
[1745345705743,4.953358,1697.5,1697.4,10.11172717]
[1745345707108,11.45580962,1697.9,1697.4,10.11172717]
[1745345707109,4.953358,1697.8,1697.4,10.11172717]
[1745345707413,4.953358,1697.8,1697.4,16.00295291]
[1745345708187,4.953358,1697.8,1697.4,21.08376202]
[1745345708327,4.953358,1698.0,1697.6,3.0]
[1745345708537,4.953358,1698.0,1697.7,0.8104]
[1745345709931,4.953358,1698.0,1697.8,5.90208517]
[1745345710142,4.953358,1698.0,1697.9,3.8104]
[1745345710310,16.73034125,1698.3,1697.9,3.8104]
[1745345710653,5.88866405,1698.2,1697.9,3.8104]
[1745345711422,0.7525,1698.1,1697.7,0.8231]
[1745345711617,5.88950731,1698.0,1697.7,3.8231]
[1745345712463,6.64149404,1698.1,1697.7,0.8231]
[1745345712636,5.88988604,1697.9,1697.5,0.8231]
[1745345712841,5.88988467,1697.9,1697.5,0.8231]
[1745345713039,13.45312766,1697.9,1697.5,0.8231]
[1745345713368,5.89003925,1697.8,1697.5,0.8231]
[1745345713959,7.56315717,1697.9,1697.5,0.8231]
[1745345714343,13.45305485,1697.9,1697.5,0.8231]
[1745345714865,5.89002847,1697.8,1697.5,0.8231]
[1745345715069,7.23534703,1697.8,1697.5,0.8231]
[1745345717161,1.34531856,1697.8,1697.5,0.8231]
[1745345717367,13.45305434,1697.9,1697.5,0.8231]
[1745345717667,5.88884156,1698.2,1697.8,5.90208517]
[1745345717852,16.73026862,1698.3,1697.9,0.8231]
[1745345718174,5.88860027,1698.2,1697.9,0.8231]
[1745345718673,10.84170827,1698.3,1697.9,3.8231]
[1745345718829,4.953358,1698.4,1698.0,5.90208517]
[1745345719035,4.953358,1698.4,1698.1,0.8231]
[1745345719687,4.953358,1698.6,1698.2,5.90208517]
[1745345719979,0.30717687,1698.8,1698.5,0.8231]
[1745345719980,10.83988825,1698.8,1698.5,0.8231]
[1745345720991,5.88720122,1698.6,1698.3,0.8231]
[1745345721984,5.8870075,1698.7,1698.3,0.8231]
[1745345722688,4.953358,1698.8,1698.3,0.8231]
[1745345722854,6.38234165,1698.7,1698.3,0.8231]
[1745345723692,11.77417621,1698.7,1698.4,5.90208517]
[1745345724185,11.77413981,1698.7,1698.4,5.90208517]
[1745345724385,11.77413981,1698.7,1698.3,0.8231]
[1745345724386,5.88737739,1698.6,1698.3,0.8231]
[1745345725668,5.88705709,1698.7,1698.3,0.88197428]
[1745345726068,5.88665911,1698.8,1698.4,5.90208517]
[1745345726271,5.88632602,1698.9,1698.5,3.0]
[1745345726468,5.88632602,1698.9,1698.6,0.8231]
[1745345727271,5.88664442,1698.8,1698.6,0.8231]
[1745345727456,5.88685465,1698.7,1698.4,6.71528517]
[1745345727991,5.88685465,1698.7,1698.4,0.8132]
[1745345727992,5.88739373,1698.6,1698.4,0.8132]
[1745345729083,13.70227395,1698.7,1698.4,0.8132]
[1745345730182,5.88723546,1698.6,1698.4,0.8132]
[1745345731188,11.77468114,1698.6,1698.4,0.8132]
[1745345731597,1.92804991,1698.7,1698.2,0.10767703]
[1745345731797,11.776363,1698.4,1698.2,0.10767703]
[1745345732198,5.8881472,1698.4,1698.2,0.10767703]
[1745345732768,5.88824118,1698.3,1698.0,6.76528517]
[1745345733273,11.77620644,1698.4,1698.0,6.76528517]
[1745345733468,11.77549116,1698.5,1698.0,6.76528517]
[1745345733672,5.88769469,1698.5,1698.2,5.90208517]
[1745345734495,5.88801589,1698.4,1698.2,5.90208517]
[1745345734803,5.88869542,1698.2,1698.0,6.76528517]
[1745345735698,11.77694873,1698.3,1698.0,6.76528517]
[1745345735863,5.8883829,1698.3,1698.0,6.76528517]
[1745345736560,5.8886446,1698.2,1698.0,6.76528517]
[1745345736997,5.8886446,1698.2,1698.0,0.8632]
[1745345737697,5.88893469,1698.1,1698.0,0.05]
[1745345738095,7.06634904,1698.2,1698.0,0.05]
[1745345738398,5.88838103,1698.3,1698.0,0.05]
[1745345738774,5.88802093,1698.4,1698.1,0.8132]
[1745345739173,5.8882688,1698.3,1698.1,0.8132]
[1745345739374,5.88802093,1698.4,1698.1,0.8132]
[1745345739582,5.88737847,1698.6,1698.1,6.71528517]
[1745345739770,5.88737847,1698.6,1698.2,0.67152852]
[1745345739969,5.88767138,1698.5,1698.1,6.71528517]
[1745345742803,5.88737847,1698.6,1698.1,6.71528517]
[1745345743010,6.6168785,1698.7,1698.5,5.90208517]
[1745345743011,0.3071785,1698.7,1698.5,5.90208517]
[1745345743207,5.88617671,1698.9,1698.6,0.7673]
[1745345743385,5.88581518,1699.0,1698.6,0.7673]
[1745345743580,6.5505867,1699.0,1698.6,0.7673]
[1745345744014,12.43666114,1699.0,1698.6,0.7673]
[1745345744314,5.88621539,1698.9,1698.6,0.7673]
[1745345745305,5.88660766,1698.8,1698.6,0.7673]
[1745345746099,5.88685465,1698.7,1698.5,3.0]
[1745345746975,5.88720122,1698.6,1698.4,0.7634]
[1745345747170,1.17734623,1698.7,1698.2,11.45608517]
[1745345747171,5.88754783,1698.5,1698.2,0.7634]
[1745345747418,5.88858791,1698.2,1698.0,0.05]
[1745345747782,5.88893469,1698.1,1698.0,0.05]
[1745345751811,5.88858791,1698.2,1698.0,0.05]
[1745345752520,11.77742542,1698.2,1698.0,0.05]
[1745345752820,5.88893469,1698.1,1698.0,0.05]
[1745345753820,7.87208695,1698.1,1698.0,0.05]
[1745345756119,5.8910162,1697.5,1697.4,0.399242]
[1745345761124,6.69585153,1697.7,1697.4,0.399242]
[1745345761417,5.89045153,1697.7,1697.5,0.7634]
[1745345762218,11.44415085,1697.8,1697.5,0.7634]
[1745345762419,5.88945097,1698.0,1697.6,0.05890331]
[1745345762605,5.88887212,1698.2,1697.7,3.7634]
[1745345762811,5.88922303,1698.1,1697.7,3.7634]
[1745345763300,11.77772177,1698.2,1697.7,3.7634]
[1745345763497,5.88879609,1698.2,1697.7,3.7634]
[1745345763692,5.88879609,1698.2,1697.8,0.37634]
[1745345764023,5.88939499,1698.0,1697.7,0.7634]
[1745345764598,5.88913261,1698.1,1697.7,0.7634]
[1745345765237,5.88943079,1698.0,1697.7,0.7634]
[1745345767807,5.88906678,1698.1,1697.7,0.7634]
[1745345768318,5.88928493,1698.0,1697.7,0.7634]
[1745345768526,5.88906678,1698.1,1697.7,0.7634]
[1745345769049,11.77827823,1698.1,1697.7,0.7634]
[1745345769542,5.88931976,1698.0,1697.7,0.7634]
[1745345769843,5.88906678,1698.1,1697.7,0.7634]
[1745345770146,5.88937779,1698.0,1697.7,0.7634]
[1745345772941,5.88906678,1698.1,1697.7,0.7634]
[1745345773318,11.77828426,1698.1,1697.7,0.7634]
[1745345773539,7.06689521,1698.1,1697.7,0.7634]
[1745345773729,5.88906678,1698.1,1697.7,0.7634]
[1745345773931,5.88932573,1698.0,1697.7,0.7634]
[1745345774638,11.77892505,1698.0,1697.7,0.7634]
[1745345774840,5.88932573,1698.0,1697.7,0.7634]
[1745345775137,7.06722179,1698.0,1697.7,0.7634]
[1745345775338,5.88912479,1698.1,1697.7,3.7634]
[1745345778537,11.77837619,1698.1,1697.7,3.7634]
[1745345778737,5.88877836,1698.2,1697.7,3.7634]
[1745345778937,5.88877836,1698.2,1697.8,0.7662]
[1745345779445,5.88877836,1698.2,1697.8,1.14282]
[1745345779650,11.44345949,1698.3,1697.9,3.0]
[1745345780012,11.44345949,1698.3,1698.0,0.7662]
[1745345780216,5.88870384,1698.2,1698.0,0.7662]
[1745345780418,11.44345949,1698.3,1698.0,0.7662]
[1745345780613,11.44327645,1698.3,1698.0,0.7662]
[1745345780875,6.19494722,1698.5,1698.0,7.04490517]
[1745345781158,5.88773294,1698.5,1698.1,3.0]
[1745345781526,5.88773294,1698.5,1698.2,0.7662]
[1745345782266,6.19425916,1698.7,1698.2,6.66828517]
[1745345782418,6.19425916,1698.7,1698.3,0.7662]
[1745345782619,5.88731235,1698.6,1698.3,0.7662]
[1745345782817,6.19425916,1698.7,1698.3,0.7662]
[1745345783041,6.19425916,1698.7,1698.3,4.43302852]
[1745345783321,5.88703739,1698.7,1698.3,4.43302852]
[1745345783975,11.77421219,1698.7,1698.3,4.43302852]
[1745345784273,11.77419961,1698.7,1698.3,4.43302852]
[1745345784579,5.88703739,1698.7,1698.3,4.43302852]
[1745345784969,11.43572307,1698.8,1698.3,4.43302852]
[1745345785177,5.88685997,1698.7,1698.3,4.43302852]
[1745345786277,5.88672307,1698.8,1698.4,1.23770285]
[1745345786434,5.88652537,1698.8,1698.4,1.23770285]
[1745345787083,11.98640572,1698.9,1698.4,1.23770285]
[1745345787286,5.88650827,1698.8,1698.4,1.23770285]
[1745345787869,11.98621454,1698.9,1698.4,1.23770285]
[1745345788068,6.1,1698.9,1698.6,0.7944]
[1745345788280,17.84113164,1699.0,1698.6,0.7944]
[1745345789135,11.9552199,1699.0,1698.6,6.69648517]
[1745345789340,6.1,1699.0,1698.7,0.7944]
[1745345789584,6.1,1699.0,1698.7,3.7944]
[1745345792383,11.98532497,1699.2,1698.7,3.7944]
[1745345792787,6.1,1699.2,1698.8,6.69648517]
[1745345792988,0.30717137,1699.3,1699.0,5.90208517]
[1745345793196,0.30717137,1699.3,1699.1,0.7944]
[1745345793564,0.30717137,1699.3,1699.1,3.7944]
[1745345794587,5.88388803,1699.6,1699.1,3.7944]
[1745345795365,11.76789176,1699.6,1699.1,3.7944]
[1745345795571,5.88410273,1699.5,1699.1,5.35262615]
[1745345795974,5.88396505,1699.6,1699.1,5.35262615]
[1745345797798,11.76799827,1699.6,1699.1,5.35262615]
[1745345798098,5.88396505,1699.6,1699.1,5.35262615]
[1745345798555,5.88416318,1699.5,1699.1,5.35262615]
[1745345799093,5.88396505,1699.6,1699.1,5.35262615]
[1745345799496,5.88412456,1699.5,1699.1,5.35262615]
[1745345799701,5.88412456,1699.5,1699.2,0.53526261]
[1745345801495,5.88412456,1699.5,1699.3,0.7751]
[1745345804297,5.88391821,1699.6,1699.3,0.7751]
[1745345804718,6.1,1699.7,1699.3,0.7751]
[1745345804890,11.98317951,1699.8,1699.3,3.7751]
[1745345806314,5.88339522,1699.7,1699.3,3.7751]
[1745345807526,5.88339522,1699.7,1699.3,0.7751]
[1745345808022,5.88488607,1699.3,1699.0,0.7751]
[1745345808175,5.88538058,1699.2,1699.0,0.7751]
[1745345808582,11.77083922,1699.2,1699.0,0.7751]
[1745345808817,5.88538058,1699.2,1698.7,5.538]
[1745345809004,5.88584856,1699.0,1698.8,0.7751]
[1745345809316,5.88577761,1699.1,1698.8,0.7751]
[1745345810102,0.30715149,1699.0,1698.8,0.7751]
[1745345810533,6.19320427,1699.0,1698.5,5.538]
[1745345810688,5.88636501,1698.9,1698.6,3.7751]
[1745345811119,12.29320427,1699.0,1698.6,3.7751]
[1745345811120,18.17929086,1699.0,1698.6,3.7751]
[1745345811418,20.08041179,1699.0,1698.6,3.7751]
[1745345811597,14.19433336,1699.0,1698.6,3.7751]
[1745345812324,12.29320427,1699.0,1698.6,3.7751]
[1745345812889,5.88626747,1698.9,1698.6,0.7751]
[1745345813088,12.29320427,1699.0,1698.6,0.7751]
[1745345813089,5.88685465,1698.7,1698.6,0.7751]
[1745345813290,5.88662761,1698.8,1698.6,0.7751]
[1745345813504,7.06392516,1698.8,1698.6,0.7751]
[1745345813742,5.88708985,1698.7,1698.4,0.7751]
[1745345815239,5.88724124,1698.6,1698.4,0.7751]
[1745345815438,5.88724124,1698.6,1698.2,0.7751]
[1745345816939,5.88773836,1698.5,1698.2,0.7751]
[1745345817153,5.88809582,1698.4,1698.2,0.7751]
[1745345817651,5.88824118,1698.3,1698.0,20.0]
[1745345817836,5.88824118,1698.3,1698.1,0.8145]
[1745345818014,5.88824118,1698.3,1698.1,3.8145]
[1745345818626,5.88808029,1698.4,1698.1,3.0]
[1745345819146,11.98769384,1698.5,1698.1,3.05888733]
[1745345819313,11.98769384,1698.5,1698.2,0.8145]
[1745345820132,5.88818358,1698.4,1698.2,0.8145]
[1745345820335,11.98776029,1698.5,1698.2,0.8145]
[1745345820967,6.1,1698.5,1698.2,1.19595]
[1745345821670,17.52606426,1698.7,1698.4,0.8145]
[1745345821873,6.1,1698.7,1698.4,0.8145]
[1745345822170,5.88842568,1698.3,1698.1,3.0]
[1745345822376,5.88806336,1698.4,1698.1,3.0]
[1745345822571,5.88828819,1698.3,1698.1,2.38145]
[1745345822940,5.88858791,1698.2,1698.0,20.8145]
[1745345823167,5.88864372,1698.2,1698.0,20.8145]
[1745345823375,5.88847037,1698.3,1698.0,20.8145]
[1745345823542,5.88869327,1698.2,1698.0,20.8145]
[1745345823742,5.88869327,1698.2,1698.0,20.0]
[1745345825475,6.19595495,1698.2,1698.0,20.0]
[1745345826078,0.30726168,1698.2,1698.0,20.0]
[1745345826444,5.88893469,1698.1,1698.0,20.0]
[1745345827877,6.19616457,1698.2,1698.0,20.0]
[1745345828186,5.88893469,1698.1,1698.0,20.0]
[1745345828380,24.20321986,1698.1,1698.0,20.0]
[1745345829280,5.8910162,1697.5,1697.4,0.399242]
[1745345829486,13.16919668,1697.5,1697.4,0.399242]
[1745345830500,13.94139668,1697.5,1697.4,0.399242]
[1745345830709,19.84348185,1697.5,1697.4,0.399242]
[1745345832987,20.28982795,1697.5,1697.4,0.399242]
[1745345833598,20.28982795,1697.5,1697.4,1e-08]
[1745345833599,20.83982795,1697.5,1697.4,1e-08]
[1745345834885,20.28982795,1697.5,1697.4,1e-08]
[1745345835195,13.94139668,1697.5,1697.4,1e-08]
[1745345835524,12.7632162,1697.5,1697.4,1e-08]
[1745345835711,17.5270162,1697.5,1697.4,1e-08]
[1745345835916,6.1,1697.5,1697.4,1e-08]
[1745345836113,11.99011974,1697.8,1697.4,1e-08]
[1745345836315,11.99011974,1697.8,1697.5,0.8145]
[1745345837028,5.89055804,1697.7,1697.5,0.8145]
[1745345837207,5.8910162,1697.5,1697.4,1e-08]
[1745345838931,11.4270162,1697.5,1697.4,1e-08]
[1745345840427,24.20130137,1697.5,1697.4,1e-08]
[1745345840600,24.50872306,1697.5,1697.4,1e-08]
[1745345840800,27.54867805,1697.5,1697.4,1e-08]
[1745345841409,21.64659288,1697.5,1697.4,1e-08]
[1745345841606,12.29843789,1697.5,1697.4,1e-08]
[1745345841809,17.83443789,1697.5,1697.4,1e-08]
[1745345842699,12.29843789,1697.5,1697.4,1e-08]
[1745345844931,18.20052306,1697.5,1697.4,1e-08]
[1745345845237,12.29843789,1697.5,1697.4,1e-08]
[1745345845406,14.67106436,1697.5,1697.4,1e-08]
[1745345846604,12.29843789,1697.5,1697.4,1e-08]
[1745345848854,19.56482306,1697.5,1697.4,1e-08]
[1745345849355,13.11273789,1697.5,1697.4,1e-08]
[1745345849556,12.29843789,1697.5,1697.4,1e-08]
[1745345849723,17.83543789,1697.5,1697.4,1e-08]
[1745345849926,20.79827288,1697.5,1697.4,1e-08]
[1745345850215,15.26127288,1697.5,1697.4,1e-08]
[1745345850421,12.29843789,1697.5,1697.4,1e-08]
[1745345851755,13.66273789,1697.5,1697.4,1e-08]
[1745345851922,16.66273789,1697.5,1697.4,1e-08]
[1745345852323,22.56482306,1697.5,1697.4,1e-08]
[1745345852573,16.99158937,1697.5,1697.4,1e-08]
[1745345852879,19.32003951,1697.5,1697.4,1e-08]
[1745345853473,21.85803951,1697.5,1697.4,1e-08]
[1745345853651,21.52918803,1697.5,1697.4,1e-08]
[1745345855157,21.85844229,1697.5,1697.4,1e-08]
[1745345855357,22.40844229,1697.5,1697.4,1e-08]
[1745345855548,21.85844229,1697.5,1697.4,1e-08]
[1745345855754,22.40844229,1697.5,1697.4,1e-08]
[1745345856765,21.85844229,1697.5,1697.4,1e-08]
[1745345858814,21.04414229,1697.5,1697.4,1e-08]
[1745345858973,15.50614229,1697.5,1697.4,1e-08]
[1745345859167,21.04414229,1697.5,1697.4,1e-08]
[1745345860817,20.71488803,1697.5,1697.4,1e-08]
[1745345862919,12.29843789,1697.5,1697.4,1e-08]
[1745345867234,16.06393789,1697.5,1697.4,1e-08]
[1745345867402,13.3942905,1697.5,1697.4,1e-08]
[1745345868836,12.6287905,1697.5,1697.4,1e-08]
[1745345869200,12.29843789,1697.5,1697.4,1e-08]
[1745345869419,14.11736436,1697.5,1697.4,1e-08]
[1745345870230,0.30742169,1697.5,1697.4,0.80750001]
[1745345870719,6.19843789,1697.5,1697.4,0.80750001]
[1745345874332,6.19843789,1697.5,1697.4,1e-08]
[1745345879838,6.96393789,1697.5,1697.4,1e-08]
[1745345880057,7.29424691,1697.5,1697.4,1e-08]
[1745345880362,9.24698618,1697.5,1697.4,1e-08]
[1745345882066,5.89233131,1697.2,1696.9,0.55750001]
[1745345882639,5.89232738,1697.2,1696.9,0.55750001]
[1745345882966,5.89268851,1697.1,1696.9,0.55750001]
[1745345883862,5.89220051,1697.2,1696.9,0.55750001]
[1745345884162,11.42292993,1697.3,1696.8,3.0]
[1745345884363,11.42292993,1697.3,1696.9,0.35892326]
[1745345884672,5.531,1697.3,1696.9,6.20208517]
[1745345884825,5.531,1697.3,1696.9,6.26100532]
[1745345885022,11.42180101,1697.6,1697.1,0.8075]
[1745345885229,5.89120353,1697.5,1697.1,0.8075]
[1745345885452,5.89120353,1697.5,1697.2,0.8075]
[1745345885657,5.89083411,1697.6,1697.2,0.8075]
[1745345885856,5.89054242,1697.7,1697.3,0.8075]
[1745345886036,5.88976987,1697.9,1697.4,3.0]
[1745345886242,5.88976987,1697.9,1697.5,0.8075]
[1745345886563,5.89019457,1697.8,1697.5,0.8075]
[1745345886728,5.88982083,1697.9,1697.5,0.38075]
[1745345886929,5.88982083,1697.9,1697.6,0.8075]
[1745345887151,11.42112897,1698.1,1697.6,0.8075]
[1745345887343,17.31034802,1698.1,1697.6,0.8075]
[1745345887673,11.42112897,1698.1,1697.6,0.8075]
[1745345887858,5.88941692,1698.0,1697.6,0.8075]
[1745345888029,5.88941692,1698.0,1697.6,1.51653352]
[1745345888381,6.19537419,1698.4,1697.9,5.90208517]
[1745345888665,5.88829218,1698.3,1698.0,0.8075]
[1745345889566,5.88854828,1698.3,1698.0,0.8075]
[1745345889864,11.77709656,1698.3,1698.0,0.8075]
[1745345890038,11.77709656,1698.3,1697.8,3.8075]
[1745345890039,5.88893469,1698.1,1697.8,3.8075]
[1745345890734,11.41978473,1698.2,1697.8,3.8075]
[1745345891058,5.88894963,1698.1,1697.8,3.8075]
[1745345892569,5.531,1698.2,1697.8,0.8075]
[1745345892744,5.531,1698.2,1697.6,6.71883378]
[1745345892745,5.88977469,1697.9,1697.6,0.8011]
[1745345892940,5.8894886,1698.0,1697.6,0.8011]
[1745345893666,5.88905643,1698.1,1697.6,0.8011]
[1745345893961,11.77831544,1698.1,1697.6,0.8011]
[1745345894152,11.77831544,1698.1,1697.6,1.47141852]
[1745345894650,11.77830493,1698.1,1697.7,0.8011]
[1745345894855,5.88905643,1698.1,1697.7,0.8011]
[1745345895058,5.88933806,1698.0,1697.7,0.8011]
[1745345895257,5.88905643,1698.1,1697.7,0.8011]
[1745345895554,12.95603674,1698.1,1697.7,0.8011]
[1745345895758,7.06683452,1698.1,1697.7,0.8011]
[1745345895936,5.88997526,1697.8,1697.5,0.8011]
[1745345896138,5.89050383,1697.7,1697.5,0.8011]
[1745345896456,5.89038552,1697.7,1697.5,0.8011]
[1745345897067,5.89066918,1697.6,1697.2,0.8011]
[1745345897281,5.89066918,1697.6,1697.2,3.8011]
[1745345897453,5.89104272,1697.5,1697.2,0.8011]
[1745345898156,5.89066918,1697.6,1697.2,0.8011]
[1745345898358,5.89046048,1697.7,1697.3,0.8011]
[1745345898773,11.78104934,1697.7,1697.3,0.8011]
[1745345899070,5.89046048,1697.7,1697.3,0.8011]
[1745345899751,5.89080082,1697.6,1697.3,0.8011]
[1745345900552,5.89046048,1697.7,1697.3,0.8011]
[1745345901081,11.78106944,1697.7,1697.3,0.8011]
[1745345901249,5.8906695,1697.6,1697.3,0.8011]
[1745345901643,5.89051694,1697.7,1697.3,0.8011]
[1745345902381,11.78113444,1697.7,1697.3,0.8011]
[1745345902682,5.89051694,1697.7,1697.3,1.25204935]
[1745345902880,5.89016717,1697.8,1697.3,0.45094935]
[1745345903065,11.413802,1697.9,1697.4,3.0]
[1745345903384,5.89066918,1697.6,1697.5,0.8011]
[1745345906682,11.78108518,1697.7,1697.5,0.8011]
[1745345906982,5.89052249,1697.7,1697.5,0.8011]
[1745345907184,11.78108719,1697.7,1697.5,0.8011]
[1745345907391,5.89052249,1697.7,1697.5,0.8011]
[1745345909299,11.78159678,1697.6,1697.2,0.7897]
[1745345909507,5.89066918,1697.6,1697.2,0.7897]
[1745345910077,7.06861521,1697.7,1697.2,0.7897]
[1745345910276,5.89054333,1697.7,1697.2,0.7897]
[1745345910501,11.4137643,1697.9,1697.3,3.84861287]
[1745345910807,5.88871525,1698.2,1697.7,0.7897]
[1745345911146,0.30730314,1697.8,1697.7,0.7897]
[1745345911258,5.88939004,1698.0,1697.7,1.16867]
[1745345911660,0.30731254,1698.0,1697.8,0.7897]
[1745345912161,5.8890311,1698.1,1697.8,0.7897]
[1745345913497,11.77823797,1698.1,1697.8,0.7897]
[1745345913700,5.8903222,1697.7,1697.6,0.7897]
[1745345913863,5.8903222,1697.7,1697.5,0.7897]
[1745345914062,5.89066918,1697.6,1697.5,0.7897]
[1745345914800,5.8903222,1697.7,1697.5,0.7897]
[1745345914962,11.78094721,1697.7,1697.5,0.7897]
[1745345915168,5.8910162,1697.5,1697.3,0.7897]
[1745345916080,5.89087117,1697.6,1697.3,0.7897]
[1745345916385,5.89120003,1697.5,1697.3,0.7897]
[1745345916680,5.89136326,1697.4,1696.9,3.7897]
[1745345916884,5.89081283,1697.6,1697.1,3.7897]
[1745345917193,5.89150115,1697.4,1697.1,3.7897]
[1745345917899,5.524,1697.5,1696.9,2.41903804]
[1745345918191,5.89231613,1697.2,1696.9,0.89745952]
[1745345918405,5.89240577,1697.1,1696.9,0.89745952]
[1745345918572,0.7808,1697.3,1696.9,0.89745952]
[1745345918777,5.89240469,1697.1,1696.7,0.7897]
[1745345919025,0.7808,1697.0,1696.5,0.7897]
[1745345919170,0.7808,1697.0,1696.3,0.7897]
[1745345919171,5.89429356,1696.6,1696.3,0.7897]
[1745345919369,5.89661594,1695.9,1695.8,0.7897]
[1745345919607,5.524,1696.2,1695.8,0.7897]
[1745345919793,5.89495526,1696.4,1695.8,0.7897]
[1745345919993,6.11349553,1696.4,1695.8,1.55766272]
[1745345920377,5.524,1696.4,1695.9,5.90208517]
[1745345920709,5.524,1696.4,1696.1,0.7897]
[1745345921276,5.8942867,1696.6,1696.1,0.7897]
[1745345922115,11.41992598,1696.7,1696.2,5.90208517]
[1745345922278,11.41961218,1696.8,1696.3,0.7897]
[1745345922481,0.7808,1697.0,1696.5,0.7897]
[1745345922482,11.41903417,1697.0,1696.5,0.7897]
[1745345922774,11.41876458,1697.0,1696.6,5.90208517]
[1745345923094,5.89346058,1696.8,1696.5,3.7897]
[1745345923293,5.526,1697.0,1696.5,3.7897]
[1745345923294,5.89328262,1696.9,1696.5,3.7897]
[1745345923498,11.41894668,1697.0,1696.5,4.75887852]
[1745345923499,17.31199159,1697.0,1696.5,4.75887852]
[1745345923699,5.8931018,1696.9,1696.5,3.7897]
[1745345923905,5.89345456,1696.8,1696.5,0.7897]
[1745345924921,5.89397532,1696.7,1696.5,0.7897]
[1745345925123,5.89428967,1696.6,1696.1,4.22959317]
[1745345925325,5.89397532,1696.7,1696.1,9.68555889]
[1745345925616,5.89397532,1696.7,1696.2,0.96855589]
[1745345925793,5.89437105,1696.6,1696.2,0.96855589]
[1745345925994,5.89437105,1696.6,1696.1,3.7897]
[1745345926619,5.89437105,1696.6,1696.1,0.7897]
[1745345927032,5.89393878,1696.7,1696.1,9.68552946]
[1745345927238,5.89344648,1696.8,1696.1,3.7897]
[1745345927445,6.67394727,1696.9,1696.1,3.7897]
[1745345927747,5.89450271,1696.5,1696.1,3.7897]
[1745345927948,5.8943123,1696.6,1696.1,3.7897]
[1745345928748,11.78871772,1696.6,1696.1,3.7897]
[1745345928949,5.8943123,1696.6,1696.1,3.7897]
[1745345929147,5.8943123,1696.6,1696.1,4.22288062]
[1745345929349,5.89459708,1696.5,1696.1,4.22288062]
[1745345929515,6.51448274,1696.6,1696.1,4.22288062]
[1745345929716,12.4088969,1696.6,1696.1,4.22288062]
[1745345929959,5.8946804,1696.5,1696.1,4.22288062]
[1745345930248,6.14117044,1696.6,1696.1,3.7897]
[1745345930561,5.89518964,1696.3,1696.1,0.7897]
[1745345930718,5.8949878,1696.4,1696.1,0.7897]
[1745345930913,12.40359142,1696.5,1696.1,0.7897]
[1745345931151,6.50881764,1696.5,1696.2,0.5886]
[1745345931358,5.89485605,1696.4,1696.1,0.7897]
[1745345931570,5.89533861,1696.3,1696.1,0.7897]
[1745345931848,0.62017044,1696.6,1696.1,0.7897]
[1745345932051,6.20138273,1696.7,1696.3,0.7897]
[1745345932218,5.89414837,1696.6,1696.3,0.7897]
[1745345932625,11.78808971,1696.7,1696.3,0.7897]
[1745345932830,5.89399063,1696.7,1696.3,0.7897]
[1745345933032,11.78813129,1696.7,1696.3,0.7897]
[1745345933253,5.89399063,1696.7,1696.3,0.7897]
[1745345933650,1.21957906,1696.7,1696.3,0.7897]
[1745345933890,5.89458946,1696.5,1696.3,0.7897]
[1745345934097,5.89483612,1696.4,1696.3,0.7897]
[1745345934256,5.89548664,1696.3,1696.1,0.7897]
[1745345934450,5.89494108,1696.4,1696.1,0.7897]
[1745345934688,12.67397954,1696.4,1696.1,0.7897]
[1745345934887,5.89519134,1696.3,1696.1,0.7897]
[1745345935485,12.67397954,1696.4,1696.1,0.7897]
[1745345935790,6.77903846,1696.4,1696.1,0.7897]
[1745345935958,11.41708556,1696.4,1696.1,0.7897]
[1745345936359,5.89520409,1696.3,1696.1,0.7897]
[1745345936554,11.41708556,1696.4,1696.1,0.7897]
[1745345938890,12.18148556,1696.4,1695.9,0.8305]
[1745345939094,18.07663009,1696.4,1695.9,0.8305]
[1745345939282,5.89524087,1696.3,1695.9,0.8305]
[1745345939479,7.32966301,1696.4,1695.9,12.72354638]
[1745345939682,5.522,1696.4,1696.0,0.8305]
[1745345939885,5.522,1696.4,1696.0,6.72670669]
[1745345940101,12.63552367,1696.7,1696.2,0.8305]
[1745345940302,11.41594461,1696.7,1696.2,0.8305]
[1745345940495,17.31001444,1696.7,1696.2,0.8305]
[1745345940690,5.89431147,1696.6,1696.2,0.8305]
[1745345941686,19.11742724,1696.7,1696.2,0.8305]
[1745345941885,5.89417327,1696.6,1696.2,0.8305]
[1745345942588,13.22338605,1696.7,1696.2,0.8305]
[1745345942789,5.89417396,1696.6,1696.2,0.8305]
[1745345942990,19.11746419,1696.7,1696.2,0.8305]
[1745345943192,5.89426164,1696.6,1696.2,0.8305]
[1745345943513,13.22340743,1696.7,1696.2,0.8305]
[1745345943709,7.32944144,1696.7,1696.3,0.8305]
[1745345944987,5.522,1696.8,1696.5,0.8305]
[1745345945195,5.522,1696.9,1696.5,0.8305]
[1745345945401,5.89257796,1697.1,1696.7,0.7758]